fUSD/lending_fUSD_20240501
["ID","MTS","AMOUNT","RATE_DAILY","PERIOD"]
[325156912,1714542667794,-260.832322,0.000126,2]
[325156913,1714542667804,-151.0,0.000126,2]
[325156914,1714542667814,-260.832322,0.000126,2]
[325156915,1714542667823,-581.766893,0.000126,2]
[325156916,1714542667833,-581.766893,0.000126,2]
[325156917,1714542667843,-551.2097505,0.00012601,2]
[325156918,1714542667852,-500.0,0.00012602,2]
[325156919,1714542667862,-243.93325154,0.00012602,2]
[325156920,1714542667871,-151.0,0.00012602,2]
[325156921,1714542667880,-151.0,0.00012602,2]
[325156922,1714542667890,-500.0,0.00012602,2]
[325156923,1714542667899,-500.0,0.00012602,2]
[325156924,1714542667909,-500.0,0.00012602,2]
[325156925,1714542667919,-500.0,0.00012602,2]
[325156926,1714542667928,-158.306517,0.00012602,2]
[325156927,1714542667938,-158.306517,0.00012602,2]
[325156928,1714542667951,-151.0,0.00012602,2]
[325156929,1714542667961,-500.0,0.00012602,2]
[325156930,1714542667971,-500.0,0.00012602,2]
[325156931,1714542667980,-151.0,0.00012602,2]
[325156932,1714542667989,-151.0,0.00012602,2]
[325156933,1714542667999,-151.0,0.00012602,2]
[325156934,1714542668009,-500.0,0.00012602,2]
[325156935,1714542668018,-1188.74,0.00012602,2]
[325156936,1714542668027,-500.0,0.00012602,2]
[325156937,1714542668037,-500.0,0.00012602,2]
[325156938,1714542668046,-512.02058137,0.00012602,2]
[325156939,1714542668055,-601.89644809,0.00012602,2]
[325156940,1714542668065,-500.0,0.00012602,2]
[325156941,1714542668075,-500.0,0.00012602,2]
[325156942,1714542668084,-216.5734475,0.00012602,2]
[325156943,1714542668093,-500.0,0.00012602,2]
[325156944,1714542668103,-519.21906981,0.00012602,2]
[325156945,1714542668112,-500.0,0.00012602,2]
[325156946,1714542668121,-500.0,0.00012602,2]
[325156947,1714542668130,-500.0,0.00012602,2]
[325156948,1714542668139,-669.77,0.00012602,2]
[325156949,1714542668148,-1625.73,0.00012602,2]
[325156950,1714542668158,-151.0,0.00012602,2]
[325156951,1714542668167,-500.0,0.00012602,2]
[325156952,1714542668176,-151.0,0.00012602,2]
[325156953,1714542668186,-500.0,0.00012602,2]
[325156954,1714542668197,-500.0,0.00012602,2]
[325156955,1714542668209,-500.0,0.00012602,2]
[325156956,1714542668220,-584.18,0.00012602,2]
[325156957,1714542668229,-500.0,0.00012602,2]
[325156958,1714542668238,-500.0,0.00012602,2]
[325156959,1714542668248,-571.47,0.00012602,2]
[325156960,1714542668258,-235.59293309,0.00012602,2]
[325156961,1714542668268,-151.0,0.00012602,2]
[325156962,1714542668278,-151.0,0.00012602,2]
[325156963,1714542668288,-500.0,0.00012602,2]
[325156964,1714542668298,-151.0,0.00012602,2]
[325156965,1714542668307,-500.0,0.00012602,2]
[325156966,1714542668316,-500.0,0.00012602,2]
[325156967,1714542668326,-586.79,0.00012602,2]
[325156968,1714542668335,-500.0,0.00012602,2]
[325156969,1714542668345,-500.0,0.00012602,2]
[325156970,1714542668354,-158.129959,0.00012602,2]
[325156971,1714542668364,-500.0,0.00012602,2]
[325156972,1714542668373,-151.0,0.00012602,2]
[325156973,1714542668382,-150.0,0.00012602,2]
[325156974,1714542668392,-500.0,0.00012602,2]
[325156975,1714542668401,-500.0,0.00012602,2]
[325156976,1714542668410,-151.0,0.00012602,2]
[325156977,1714542668419,-500.0,0.00012602,2]
[325156978,1714542668429,-500.0,0.00012602,2]
[325156979,1714542668438,-541.66989268,0.00012602,2]
[325156980,1714542668449,-500.0,0.00012602,2]
[325156981,1714542668458,-151.0,0.00012602,2]
[325156982,1714542668467,-500.0,0.00012602,2]
[325156983,1714542668477,-500.0,0.00012602,2]
[325156984,1714542668486,-716.58,0.00012602,2]
[325156985,1714542668495,-500.0,0.00012602,2]
[325156986,1714542668505,-500.0,0.00012602,2]
[325156987,1714542668514,-451.786052,0.00012602,2]
[325156988,1714542668523,-451.786052,0.00012602,2]
[325156989,1714542668532,-500.0,0.00012602,2]
[325156990,1714542668541,-500.0,0.00012602,2]
[325156991,1714542668551,-334.50733606,0.00012602,2]
[325156992,1714542668560,-500.0,0.00012602,2]
[325156993,1714542668570,-500.0,0.00012602,2]
[325156994,1714542668579,-306.772243,0.00012602,2]
[325156995,1714542668589,-500.0,0.00012602,2]
[325156996,1714542668599,-306.772243,0.00012602,2]
[325156997,1714542668608,-500.0,0.00012602,2]
[325156998,1714542668618,-500.0,0.00012602,2]
[325156999,1714542668628,-190.99632342,0.00012602,2]
[325157000,1714542668637,-187.368583,0.00012602,2]
[325157001,1714542668646,-500.0,0.00012602,2]
[325157002,1714542668655,-310.10207572,0.00012602,2]
[325157003,1714542668664,-284.453378,0.00012602,2]
[325157004,1714542668673,-500.0,0.00012602,2]
[325157005,1714542668683,-151.0,0.00012602,2]
[325157006,1714542668692,-151.0,0.00012602,2]
[325157007,1714542668701,-580.66182231,0.00012602,2]
[325157008,1714542668711,-151.0,0.00012602,2]
[325157009,1714542668721,-500.0,0.00012602,2]
[325157010,1714542668730,-151.0,0.00012602,2]
[325157011,1714542668739,-210.20781,0.00012602,2]
[325157012,1714542668748,-337.179694,0.00012602,2]
[325157013,1714542668757,-500.0,0.00012602,2]
[325157014,1714542668767,-210.20781,0.00012602,2]
[325157015,1714542668776,-337.179694,0.00012602,2]
[325157016,1714542668786,-644.646043,0.00012602,2]
[325157017,1714542668795,-644.646043,0.00012602,2]
[325157018,1714542668804,-514.7397422,0.00012602,2]
[325157019,1714542668814,-151.0,0.00012602,2]
[325157020,1714542668823,-223.0852216,0.00012602,2]
[325157021,1714542668834,-500.0,0.00012602,2]
[325157022,1714542668843,-501.795764,0.00012602,2]
[325157023,1714542668852,-151.0,0.00012602,2]
[325157024,1714542668864,-348.50367179,0.00012602,2]
[325157025,1714542668873,-704.22,0.00012602,2]
[325157026,1714542668885,-501.795764,0.00012602,2]
[325157027,1714542668897,-151.0,0.00012602,2]
[325157028,1714542668908,-500.0,0.00012602,2]
[325157029,1714542668919,-379.770739,0.00012602,2]
[325157030,1714542668929,-151.0,0.00012602,2]
[325157031,1714542668940,-500.0,0.00012602,2]
[325157032,1714542668949,-379.770739,0.00012602,2]
[325157033,1714542668959,-500.0,0.00012602,2]
[325157034,1714542668972,-1776.56,0.00012602,2]
[325157035,1714542668981,-500.0,0.00012602,2]
[325157036,1714542668997,-500.0,0.00012602,2]
[325157037,1714542669008,-500.0,0.00012602,2]
[325157038,1714542669019,-500.0,0.00012602,2]
[325157039,1714542669028,-500.0,0.00012602,2]
[325157040,1714542669038,-686.3,0.00012602,2]
[325157041,1714542669055,-151.0,0.00012602,2]
[325157042,1714542669064,-500.0,0.00012602,2]
[325157043,1714542669073,-500.0,0.00012602,2]
[325157044,1714542669083,-500.0,0.00012602,2]
[325157045,1714542669093,-151.0,0.00012602,2]
[325157046,1714542669102,-500.0,0.00012602,2]
[325157047,1714542669111,-626.52,0.00012602,2]
[325157048,1714542669120,-1184.92,0.00012602,2]
[325157049,1714542669138,-500.0,0.00012602,2]
[325157050,1714542669147,-699.23,0.00012602,2]
[325157051,1714542669157,-500.0,0.00012602,2]
[325157052,1714542669167,-500.0,0.00012602,2]
[325157053,1714542669182,-500.0,0.00012602,2]
[325157054,1714542669192,-151.0,0.00012602,2]
[325157055,1714542669201,-500.0,0.00012602,2]
[325157056,1714542669212,-347.41242678,0.00012602,2]
[325157057,1714542669222,-7170.82,0.00012602,2]
[325157058,1714542669235,-589.48,0.00012602,2]
[325157059,1714542669245,-500.0,0.00012602,2]
[325157060,1714542669255,-625.52,0.00012602,2]
[325157061,1714542669264,-643.14,0.00012602,2]
[325157062,1714542669273,-809.92,0.00012602,2]
[325157063,1714542669282,-151.0,0.00012602,2]
[325157064,1714542669292,-185.41906687,0.00012602,2]
[325157065,1714542669302,-151.0,0.00012602,2]
[325157066,1714542669313,-500.0,0.00012602,2]
[325157067,1714542669324,-697.39,0.00012602,2]
[325157068,1714542669342,-1650.0,0.00012602,2]
[325157069,1714542669351,-7789.17,0.00012602,2]
[325157070,1714542669370,-151.0,0.00012602,2]
[325157071,1714542669380,-500.0,0.00012602,2]
[325157072,1714542669389,-500.0,0.00012602,2]
[325157073,1714542669399,-3346.94,0.00012602,2]
[325157074,1714542669408,-353.856056,0.00012602,2]
[325157075,1714542669418,-612.00961051,0.00012602,2]
[325157076,1714542669427,-585.15,0.00012602,2]
[325157077,1714542669445,-724.59,0.00012602,2]
[325157078,1714542669454,-549.53,0.00012602,2]
[325157079,1714542669464,-353.856056,0.00012602,2]
[325157080,1714542669474,-500.0,0.00012602,2]
[325157081,1714542669484,-711.11,0.00012602,2]
[325157082,1714542669494,-1021.06,0.00012602,2]
[325157083,1714542669504,-500.0,0.00012602,2]
[325157084,1714542669514,-1018.7,0.00012602,2]
[325157085,1714542669524,-3038.17,0.00012602,2]
[325157086,1714542669534,-500.0,0.00012602,2]
[325157087,1714542669544,-500.0,0.00012602,2]
[325157088,1714542669553,-500.0,0.00012602,2]
[325157089,1714542669563,-591.4,0.00012602,2]
[325157090,1714542669572,-1962.87,0.00012602,2]
[325157091,1714542669581,-500.0,0.00012602,2]
[325157092,1714542669591,-1298.52,0.00012602,2]
[325157093,1714542669600,-1337.7,0.00012602,2]
[325157094,1714542669610,-488.36428382,0.00012602,2]
[325157095,1714542669620,-500.0,0.00012602,2]
[325157096,1714542669630,-500.0,0.00012602,2]
[325157097,1714542669640,-194.313902,0.00012602,2]
[325157098,1714542669653,-1069.93,0.00012602,2]
[325157099,1714542669663,-500.0,0.00012602,2]
[325157100,1714542669672,-1264.24,0.00012602,2]
[325157101,1714542669695,-582.27,0.00012602,2]
[325157102,1714542669706,-194.313902,0.00012602,2]
[325157103,1714542669715,-500.0,0.00012602,2]
[325157104,1714542669725,-500.0,0.00012602,2]
[325157105,1714542669745,-710.13,0.00012602,2]
[325157106,1714542669755,-520.66655614,0.00012602,2]
[325157107,1714542669765,-500.0,0.00012602,2]
[325157108,1714542669775,-500.0,0.00012602,2]
[325157109,1714542669784,-500.0,0.00012602,2]
[325157110,1714542669795,-690.32,0.00012602,2]
[325157111,1714542669805,-738.69,0.00012602,2]
[325157112,1714542669815,-500.0,0.00012602,2]
[325157113,1714542669825,-190.29195624,0.00012602,2]
[325157114,1714542669834,-500.0,0.00012602,2]
[325157115,1714542669844,-500.0,0.00012602,2]
[325157116,1714542669853,-500.0,0.00012602,2]
[325157117,1714542669862,-500.0,0.00012602,2]
[325157118,1714542669876,-2161.38,0.00012602,2]
[325157119,1714542669885,-966.37,0.00012602,2]
[325157120,1714542669895,-4905.9,0.00012602,2]
[325157121,1714542669905,-500.0,0.00012602,2]
[325157122,1714542669914,-1948.4,0.00012602,2]
[325157123,1714542669924,-759.28,0.00012602,2]
[325157124,1714542669933,-500.0,0.00012602,2]
[325157125,1714542669944,-1275.71,0.00012602,2]
[325157126,1714542669954,-500.0,0.00012602,2]
[325157127,1714542669964,-758.67,0.00012602,2]
[325157128,1714542669973,-500.0,0.00012602,2]
[325157129,1714542669983,-886.96,0.00012602,2]
[325157130,1714542669992,-500.0,0.00012602,2]
[325157131,1714542670001,-500.0,0.00012602,2]
[325157132,1714542670013,-2677.35,0.00012602,2]
[325157133,1714542670022,-500.0,0.00012602,2]
[325157134,1714542670032,-500.0,0.00012602,2]
[325157135,1714542670042,-1235.88,0.00012602,2]
[325157136,1714542670051,-500.0,0.00012602,2]
[325157137,1714542670060,-866.09,0.00012602,2]
[325157138,1714542670070,-500.0,0.00012602,2]
[325157139,1714542670078,-500.0,0.00012602,2]
[325157140,1714542670089,-1072.35,0.00012602,2]
[325157141,1714542670098,-1288.28,0.00012602,2]
[325157142,1714542670107,-500.0,0.00012602,2]
[325157143,1714542670117,-3316.24,0.00012602,2]
[325157144,1714542670127,-1241.61,0.00012602,2]
[325157145,1714542670136,-169.48672603,0.00012602,2]
[325157146,1714542670146,-500.0,0.00012602,2]
[325157147,1714542670155,-500.0,0.00012602,2]
[325157148,1714542670166,-500.0,0.00012602,2]
[325157149,1714542670175,-2504.85,0.00012602,2]
[325157150,1714542670185,-500.0,0.00012602,2]
[325157151,1714542670196,-500.0,0.00012602,2]
[325157152,1714542670206,-810.87,0.00012602,2]
[325157153,1714542670222,-500.0,0.00012602,2]
[325157154,1714542670231,-500.0,0.00012602,2]
[325157155,1714542670241,-507.55,0.00012602,2]
[325157156,1714542670251,-870.27,0.00012602,2]
[325157157,1714542670261,-3432.19,0.00012602,2]
[325157158,1714542670272,-500.0,0.00012602,2]
[325157159,1714542670282,-1019.03,0.00012602,2]
[325157160,1714542670292,-935.9,0.00012602,2]
[325157161,1714542670302,-563.78,0.00012602,2]
[325157162,1714542670311,-2956.33,0.00012602,2]
[325157163,1714542670321,-1026.81,0.00012602,2]
[325157164,1714542670330,-3294.14,0.00012602,2]
[325157165,1714542670340,-500.0,0.00012602,2]
[325157166,1714542670350,-500.0,0.00012602,2]
[325157167,1714542670359,-500.0,0.00012602,2]
[325157168,1714542670368,-1610.66,0.00012602,2]
[325157169,1714542670378,-500.0,0.00012602,2]
[325157170,1714542670387,-500.0,0.00012602,2]
[325157171,1714542670396,-1323.01,0.00012602,2]
[325157172,1714542670406,-6150.44,0.00012602,2]
[325157173,1714542670415,-1965.64,0.00012602,2]
[325157174,1714542670425,-500.0,0.00012602,2]
[325157175,1714542670435,-500.0,0.00012602,2]
[325157176,1714542670446,-500.0,0.00012602,2]
[325157177,1714542670456,-500.34,0.00012602,2]
[325157178,1714542670466,-11884.42,0.00012602,2]
[325157179,1714542670475,-500.0,0.00012602,2]
[325157180,1714542670485,-1478.72,0.00012602,2]
[325157181,1714542670494,-1095.18,0.00012602,2]
[325157182,1714542670504,-12067.93,0.00012602,2]
[325157183,1714542670513,-1361.3,0.00012602,2]
[325157184,1714542670523,-500.0,0.00012602,2]
[325157185,1714542670533,-500.0,0.00012602,2]
[325157186,1714542670543,-671.59,0.00012602,2]
[325157187,1714542670552,-803.19,0.00012602,2]
[325157188,1714542670562,-510.64,0.00012602,2]
[325157189,1714542670571,-1131.44,0.00012602,2]
[325157190,1714542670580,-5313.27,0.00012602,2]
[325157191,1714542670590,-1967.48,0.00012602,2]
[325157192,1714542670600,-741.95,0.00012602,2]
[325157193,1714542670609,-500.0,0.00012602,2]
[325157194,1714542670618,-12501.05,0.00012602,2]
[325157195,1714542670628,-500.0,0.00012602,2]
[325157196,1714542670637,-1216.94,0.0001265,2]
[325157197,1714542670647,-31629.83730252,0.00012681,2]
[325157198,1714542670656,-151.0,0.00012681,2]
[325157199,1714542670666,-151.0,0.00012681,2]
[325157200,1714542670675,-239644.36394907,0.00012699,2]
[325157201,1714542671361,-357.06178067,0.00010958,2]
[325157202,1714542671435,-142.93821933,0.00010958,2]
[325157203,1714542671446,-257.48078067,0.00010958,2]
[325157204,1714542672085,-242.51921933,0.00010958,2]
[325157205,1714542672095,-130.74778067,0.00011232,2]
[325157206,1714542675848,155.16219537,9.748e-05,2]
[325157207,1714542676011,20182.90917099,9.748e-05,2]
[325157208,1714542676827,171.26,8.864e-05,2]
[325157209,1714542716791,562.94373578,6.94e-05,2]
[325157210,1714542753958,1228.18672309,8.864e-05,2]
[325157211,1714542753985,712.70059996,8.864e-05,2]
[325157212,1714542754008,55677.68395241,8.864e-05,2]
[325157213,1714542754034,335230.31945268,8.864e-05,2]
[325157214,1714542781531,454.14,8.263e-05,2]
[325157215,1714542792315,423.0207505,7.978e-05,2]
[325157216,1714542794785,299.59736826,7.091e-05,2]
[325157217,1714542795005,155.0,8.864e-05,2]
[325157218,1714542795513,173.18880076,8.864e-05,2]
[325157219,1714542798015,346.13624369,8.864e-05,2]
[325157220,1714542802793,7504.73353817,8.864e-05,2]
[325157221,1714542803928,43551.53185475,8.864e-05,2]
[325157222,1714542809462,240.95827073,8.864e-05,2]
[325157223,1714542810458,423.0207505,7.978e-05,2]
[325157224,1714542812960,155.0,8.864e-05,2]
[325157225,1714542820701,226.61,8.069e-05,2]
[325157226,1714542822801,2350.15876935,8.864e-05,2]
[325157227,1714542828285,422.8208092,7.978e-05,2]
[325157228,1714542832965,155.0,8.864e-05,2]
[325157229,1714542858998,222.00627378,8.864e-05,2]
[325157230,1714542927921,600.98,9.983e-05,2]
[325157231,1714543011746,200.0,9.951e-05,2]
[325157232,1714543050662,500.0,9.882e-05,2]
[325157233,1714543051455,398.49,9.882e-05,2]
[325157234,1714543060537,1725.62,9.882e-05,2]
[325157235,1714543076983,250.0,9.927e-05,2]
[325157236,1714543184436,154.88,9.874e-05,2]
[325157237,1714543184584,154.88,9.883e-05,2]
[325157238,1714543184803,154.88,9.891e-05,2]
[325157239,1714543185042,154.88,9.899e-05,2]
[325157240,1714543185248,154.88,9.907e-05,2]
[325157241,1714543185461,154.88,9.915e-05,2]
[325157242,1714543185696,154.88,9.924e-05,2]
[325157243,1714543200704,1821.79,9.874e-05,2]
[325157244,1714543202696,150.0,9.927e-05,2]
[325157245,1714543202920,150.0,9.927e-05,2]
[325157246,1714543203124,150.0,9.927e-05,2]
[325157247,1714543203305,150.0,9.927e-05,2]
[325157248,1714543203531,150.0,9.927e-05,2]
[325157249,1714543203747,150.0,9.927e-05,2]
[325157250,1714543203902,150.0,9.927e-05,2]
[325157251,1714543204095,150.0,9.927e-05,2]
[325157252,1714543204279,150.0,9.927e-05,2]
[325157253,1714543204536,150.0,9.927e-05,2]
[325157254,1714543204730,150.0,9.927e-05,2]
[325157255,1714543205115,150.0,9.927e-05,2]
[325157256,1714543205316,150.0,9.927e-05,2]
[325157257,1714543205530,150.0,9.927e-05,2]
[325157258,1714543205765,150.0,9.927e-05,2]
[325157259,1714543205953,150.0,9.927e-05,2]
[325157260,1714543206379,150.0,9.927e-05,2]
[325157261,1714543206547,150.0,9.927e-05,2]
[325157262,1714543206720,150.0,9.927e-05,2]
[325157263,1714543206912,150.0,9.927e-05,2]
[325157264,1714543207082,150.0,9.927e-05,2]
[325157265,1714543207273,150.0,9.927e-05,2]
[325157266,1714543207438,150.0,9.927e-05,2]
[325157267,1714543207626,150.0,9.927e-05,2]
[325157268,1714543207811,150.0,9.927e-05,2]
[325157269,1714543208007,150.0,9.927e-05,2]
[325157270,1714543208201,150.0,9.927e-05,2]
[325157271,1714543208362,150.0,9.927e-05,2]
[325157272,1714543208732,150.0,9.927e-05,2]
[325157273,1714543208776,150.0,9.927e-05,2]
[325157274,1714543208879,150.0,9.927e-05,2]
[325157275,1714543209058,150.0,9.927e-05,2]
[325157276,1714543209213,178.5437881,9.927e-05,2]
[325157277,1714543242092,472.81,8.219e-05,2]
[325157278,1714543268141,1852.42,9.901e-05,2]
[325157279,1714543367373,902.21,9.477e-05,2]
[325157282,1714543474171,750.42,9.569e-05,2]
[325157283,1714543536500,1150.08,9.508e-05,2]
[325157284,1714543539097,-274.19830564,0.0001,2]
[325157285,1714543540950,23890.0,9.522e-05,2]
[325157286,1714543549708,-133.07765408,0.0001,2]
[325157287,1714543549731,-75.94600566,0.0001,2]
[325157288,1714543551176,-203.74486369,0.0001,2]
[325157294,1714543555112,-188.4349624,0.0001,2]
[325157295,1714543555757,-182.31026998,0.0001,2]
[325157296,1714543556395,-150.55,0.0001,2]
[325157297,1714543557078,3073.67737017,9.999e-05,2]
[325157298,1714543557191,-150.0,0.0001,2]
[325157299,1714543557880,-150.0,0.0001,2]
[325157300,1714543558278,-150.0,0.0001,2]
[325157301,1714543558886,-150.0,0.0001,2]
[325157302,1714543559323,-150.0,0.0001,2]
[325157303,1714543559775,-150.0,0.0001,2]
[325157304,1714543560298,-150.0,0.0001,2]
[325157305,1714543560968,-150.0,0.0001,2]
[325157306,1714543561576,-150.0,0.0001,2]
[325157307,1714543562076,-150.0,0.0001,2]
[325157308,1714543562792,-150.0,0.0001,2]
[325157309,1714543563514,-150.0,0.0001,2]
[325157310,1714543564121,-150.0,0.0001,2]
[325157311,1714543564986,-150.0,0.0001,2]
[325157312,1714543565522,-150.0,0.0001,2]
[325157313,1714543572751,188.4349624,8e-05,2]
[325157314,1714543581229,155.0,9.999e-05,2]
[325157315,1714543624609,-32.2091097,0.0001,2]
[325157316,1714543624632,-117.7908903,0.0001,2]
[325157317,1714543629095,-150.0,0.0001,2]
[325157318,1714543629521,-150.0,0.0001,2]
[325157325,1714543650383,300.0,8.999e-05,2]
[325157328,1714543669459,250.0,9.545e-05,2]
[325157329,1714543694832,-115.65405574,0.0001,2]
[325157330,1714543694854,-34.34594426,0.0001,2]
[325157331,1714543700010,-150.0,0.0001,2]
[325157332,1714543700702,-150.0,0.0001,2]
[325157333,1714543701095,-150.0,0.0001,2]
[325157334,1714543701783,-150.0,0.0001,2]
[325157335,1714543702243,-150.0,0.0001,2]
[325157336,1714543703062,-150.0,0.0001,2]
[325157337,1714543711672,150.0,9.553e-05,2]
[325157338,1714543712346,750.0,9.999e-05,2]
[325157339,1714543720793,300.0,8e-05,2]
[325157340,1714543747470,772.09394672,9.999e-05,2]
[325157350,1714543754859,152.24,9.553e-05,2]
[325157358,1714543787430,305.41,9.842e-05,2]
[325157359,1714543787852,305.41,9.869e-05,2]
[325157360,1714543788079,305.41,9.896e-05,2]
[325157361,1714543788279,305.41,9.923e-05,2]
[325157362,1714543788487,305.41,9.95e-05,2]
[325157363,1714543788693,305.41,9.977e-05,2]
[325157364,1714543794440,490.97,8.219e-05,2]
[325157395,1714543832359,-393.7042918,0.0001,2]
[325157396,1714543832373,-586.85226721,0.0001,2]
[325157397,1714543832385,-346.16050584,0.0001,2]
[325157398,1714543832396,-812.61436106,0.0001,2]
[325157399,1714543832406,-540.99480086,0.00010001,2]
[325157400,1714543832416,-305.41,0.00010004,2]
[325157401,1714543832426,-165.31,0.00010023,2]
[325157402,1714543832435,-305.41,0.00010031,2]
[325157403,1714543832446,-305.41,0.00010058,2]
[325157404,1714543832456,-208.058967,0.00010085,2]
[325157405,1714543832466,-305.41,0.00010085,2]
[325157406,1714543832476,-209.55,0.00010086,2]
[325157407,1714543832485,-305.41,0.00010112,2]
[325157408,1714543832494,-305.41,0.00010139,2]
[325157409,1714543832504,-305.41,0.00010166,2]
[325157410,1714543832513,-305.41,0.00010193,2]
[325157411,1714543832523,-305.41,0.0001022,2]
[325157412,1714543832533,-305.41,0.00010247,2]
[325157413,1714543832542,-396.27,0.00010253,2]
[325157414,1714543832552,-305.41,0.00010274,2]
[325157415,1714543832564,-305.41,0.00010301,2]
[325157416,1714543832574,-305.41,0.00010328,2]
[325157417,1714543832583,-305.41,0.00010355,2]
[325157418,1714543832593,-154.74524915,0.00010394,2]
[325157419,1714543832603,-490.97,0.00010461,2]
[325157420,1714543832612,-150.0,0.00010474,2]
[325157421,1714543832623,-2683.07206358,0.00010475,2]
[325157422,1714543832649,-382.31936131,0.00010475,2]
[325157423,1714543832660,-571.01966468,0.00010475,2]
[325157424,1714543833393,-623.1225,0.00010475,2]
[325157425,1714543833405,-4822.22591586,0.00010475,2]
[325157426,1714543833416,-7214.33394809,0.00010475,2]
[325157427,1714543833428,-3703.89654648,0.00010475,2]
[325157428,1714543833438,-1093.36,0.00010475,2]
[325157429,1714543833448,-10485.84,0.00010475,2]
[325157430,1714543833458,-156.14614759,0.00010599,2]
[325157431,1714543833467,-1000.0,0.00010858,2]
[325157432,1714543833476,-357.46809625,0.00010956,2]
[325157433,1714543833486,-374.29336643,0.00010956,2]
[325157434,1714543833495,-175.43446637,0.00010956,2]
[325157435,1714543833504,-3086.53108162,0.00010956,2]
[325157436,1714543833513,-1063.78757875,0.00010957,2]
[325157438,1714543833523,-502.06713549,0.00010958,2]
[325157440,1714543833531,-316.92163765,0.00010958,2]
[325157442,1714543833541,-500.0,0.00010958,2]
[325157444,1714543833556,-500.0,0.00010958,2]
[325157446,1714543833565,-504.4694461,0.00010958,2]
[325157448,1714543833574,-500.0,0.00010958,2]
[325157450,1714543833584,-223.28470274,0.00010958,2]
[325157452,1714543833594,-500.0,0.00010958,2]
[325157454,1714543833603,-498.73429236,0.00010958,2]
[325157455,1714543833612,-500.0,0.00010958,2]
[325157458,1714543833623,-595.53114986,0.00010958,2]
[325157460,1714543833633,-169.6475374,0.00010958,2]
[325157462,1714543833644,-500.0,0.00010958,2]
[325157464,1714543833654,-501.91186619,0.00010958,2]
[325157466,1714543833663,-155.0991745,0.00010958,2]
[325157468,1714543833673,-500.0,0.00010958,2]
[325157470,1714543833683,-500.0,0.00010958,2]
[325157472,1714543833692,-500.0,0.00010958,2]
[325157474,1714543833702,-500.0,0.00010958,2]
[325157476,1714543833711,-500.0,0.00010958,2]
[325157478,1714543833721,-500.71822035,0.00010958,2]
[325157479,1714543833730,-500.0,0.00010958,2]
[325157482,1714543833740,-500.0,0.00010958,2]
[325157483,1714543833749,-500.0,0.00010958,2]
[325157486,1714543833759,-500.0,0.00010958,2]
[325157488,1714543833768,-500.0,0.00010958,2]
[325157490,1714543833778,-500.0,0.00010958,2]
[325157491,1714543833787,-500.0,0.00010958,2]
[325157493,1714543833796,-306.37266123,0.00010958,2]
[325157495,1714543833806,-500.0,0.00010958,2]
[325157498,1714543833816,-500.3964355,0.00010958,2]
[325157500,1714543833825,-500.0,0.00010958,2]
[325157501,1714543833835,-500.0,0.00010958,2]
[325157504,1714543833844,-500.0,0.00010958,2]
[325157506,1714543833854,-503.6695058,0.00010958,2]
[325157507,1714543833863,-500.0,0.00010958,2]